bitfinex/quotes_BTCUSD_20250620
["timestamp","ask_amount","ask_price","bid_price","bid_amount"]
[1750463104569,0.68921536,103390.0,103380.0,0.47457366]
[1750463104794,0.68921536,103390.0,103380.0,0.47185866]
[1750463105273,0.68921762,103390.0,103380.0,0.47185866]
[1750463105702,0.68907191,103390.0,103380.0,0.47171295]
[1750463107554,0.69874327,103390.0,103380.0,0.47171295]
[1750463107778,0.68907191,103390.0,103380.0,0.47171295]
[1750463108029,0.68907205,103390.0,103380.0,0.47171295]
[1750463108900,0.68000165,103390.0,103380.0,0.47171295]
[1750463111088,0.68907216,103390.0,103380.0,0.47171295]
[1750463112338,0.68907216,103390.0,103380.0,0.47029729]
[1750463113053,0.68907216,103390.0,103380.0,0.31085729]
[1750463113257,0.68907216,103390.0,103380.0,0.47021729]
[1750463115062,0.68907559,103390.0,103380.0,0.47021729]
[1750463116367,0.68907559,103390.0,103380.0,0.46744323]
[1750463117864,0.68907518,103390.0,103380.0,0.46744323]
[1750463120750,0.34907353,103390.0,103380.0,0.46744323]
[1750463120950,0.68922094,103390.0,103380.0,0.46744323]
[1750463121546,0.34921929,103390.0,103380.0,0.46744323]
[1750463121774,0.68922094,103390.0,103380.0,0.46744323]
[1750463121999,0.68907518,103390.0,103380.0,0.46729747]
[1750463123577,0.68907441,103390.0,103380.0,0.46729747]
[1750463125187,0.34907276,103390.0,103380.0,0.46729747]
[1750463125459,0.68907441,103390.0,103380.0,0.46729747]
[1750463126347,0.68907272,103390.0,103380.0,0.46729747]
[1750463126811,0.00907107,103390.0,103380.0,0.90257805]
[1750463127144,0.03516821,103400.0,103390.0,0.31832752]
[1750463127347,0.0442312,103400.0,103390.0,0.7536081]
[1750463127550,0.03516821,103400.0,103390.0,0.7536081]
[1750463128932,0.03516821,103400.0,103390.0,0.7556081]
[1750463129541,0.03516821,103400.0,103390.0,0.7576081]
[1750463129745,0.03516821,103400.0,103390.0,0.41760645]
[1750463130131,0.03516821,103400.0,103390.0,0.7576081]
[1750463130552,4.701e-05,103400.0,103390.0,0.7576081]
[1750463133304,4.701e-05,103400.0,103390.0,1.09760975]
[1750463133528,4.701e-05,103400.0,103390.0,0.4321473]
[1750463133747,4.701e-05,103400.0,103390.0,0.77214895]
[1750463133959,4.701e-05,103400.0,103390.0,0.4321473]
[1750463134178,4.701e-05,103400.0,103390.0,0.77214895]
[1750463136766,4.701e-05,103400.0,103390.0,1.1121506]
[1750463137015,4.701e-05,103400.0,103390.0,1.1372056]
[1750463137842,4.701e-05,103400.0,103390.0,0.79720395]
[1750463138690,4.701e-05,103400.0,103390.0,1.1372056]
[1750463138895,4.701e-05,103400.0,103390.0,1.16608001]
[1750463139562,4.701e-05,103400.0,103390.0,0.82607836]
[1750463139771,4.701e-05,103400.0,103390.0,1.02703836]
[1750463141656,4.701e-05,103400.0,103390.0,0.3821473]
[1750463141866,4.701e-05,103400.0,103390.0,0.9585681]
[1750463142743,4.701e-05,103400.0,103390.0,0.7576081]
[1750463142949,4.701e-05,103400.0,103390.0,0.9585281]
[1750463158563,4.701e-05,103400.0,103390.0,0.61852645]
[1750463158967,4.701e-05,103400.0,103390.0,0.9585281]
[1750463160634,0.34004866,103400.0,103390.0,0.41643645]
[1750463160807,0.34004866,103400.0,103390.0,0.61847645]
[1750463161195,4.701e-05,103400.0,103390.0,0.9584781]
[1750463162050,4.701e-05,103400.0,103390.0,0.61847645]
[1750463162295,4.701e-05,103400.0,103390.0,0.9584781]
[1750463162713,4.701e-05,103400.0,103390.0,0.61847645]
[1750463163333,0.34004866,103400.0,103390.0,0.61847645]
[1750463167007,0.34004866,103400.0,103390.0,0.36279752]
[1750463167222,0.68005031,103400.0,103390.0,0.31809752]
[1750463167405,0.68005031,103400.0,103390.0,0.47725752]
[1750463171268,0.68911057,103400.0,103390.0,0.27645752]
[1750463171500,0.698781,103400.0,103390.0,0.43561752]
[1750463171925,0.68911057,103400.0,103390.0,0.43561752]
[1750463172790,0.68911057,103400.0,103390.0,0.45691752]
[1750463174599,0.68910819,103400.0,103390.0,0.45691752]
[1750463175193,1.13058682,103400.0,103390.0,0.27645752]
[1750463175405,1.13058682,103400.0,103390.0,0.43561752]
[1750463175406,1.13708673,103400.0,103390.0,0.43561752]
[1750463175822,1.14675772,103400.0,103390.0,0.43561752]
[1750463176030,1.13708673,103400.0,103390.0,0.43561752]
[1750463176232,1.14675772,103400.0,103390.0,0.43561752]
[1750463176450,1.06461993,103400.0,103390.0,0.43361752]
[1750463176652,1.07429082,103400.0,103390.0,0.43161752]
[1750463176855,1.07429082,103400.0,103390.0,0.43461752]
[1750463177061,1.08396181,103400.0,103390.0,0.43461752]
[1750463177489,1.0742863,103400.0,103390.0,0.43461752]
[1750463177720,1.0742863,103400.0,103390.0,0.43661752]
[1750463178541,1.05811541,103400.0,103390.0,0.43661752]
[1750463178715,1.05811541,103400.0,103390.0,0.45811752]
[1750463181577,1.05811541,103400.0,103390.0,0.48021752]
[1750463181778,1.04844461,103400.0,103390.0,0.48021752]
[1750463182192,0.34910037,103400.0,103390.0,0.48021752]
[1750463182388,0.68910202,103400.0,103390.0,0.48143752]
[1750463182854,0.69877235,103400.0,103390.0,0.48143752]
[1750463183468,1.038774,103400.0,103390.0,0.48143752]
[1750463184392,1.03876985,103400.0,103390.0,0.48143752]
[1750463184597,1.04844037,103400.0,103390.0,0.48143752]
[1750463185015,1.05811108,103400.0,103390.0,0.48143752]
[1750463185224,1.04844037,103400.0,103390.0,0.48143752]
[1750463185435,1.03876985,103400.0,103390.0,0.48143752]
[1750463185833,1.04844037,103400.0,103390.0,0.48143752]
[1750463186042,1.04844102,103400.0,103390.0,0.48143752]
[1750463186248,1.0387705,103400.0,103390.0,0.48143752]
[1750463186475,1.04844102,103400.0,103390.0,0.48143752]
[1750463186899,1.04844093,103400.0,103390.0,0.48143752]
[1750463188160,0.70839392,103400.0,103390.0,0.48143752]
[1750463189163,0.7083957,103400.0,103390.0,0.48143752]
[1750463193739,1.02905494,103400.0,103390.0,0.48143752]
[1750463193943,1.0200033,103400.0,103390.0,0.48143752]
[1750463194161,1.02906095,103400.0,103390.0,0.48143752]
[1750463194548,1.02906089,103400.0,103390.0,0.48143752]
[1750463195295,0.68905924,103400.0,103390.0,0.48143752]
[1750463195507,1.02906089,103400.0,103390.0,0.48143752]
[1750463195710,0.68905924,103400.0,103390.0,0.48143752]
[1750463196910,0.34905924,103400.0,103390.0,0.48143752]
[1750463197536,0.34906261,103400.0,103390.0,0.48143752]
[1750463198005,0.34906261,103400.0,103390.0,0.57671645]
[1750463199091,0.00906096,103400.0,103390.0,0.9167181]
[1750463199259,0.68005165,103410.0,103390.0,0.9167181]
[1750463199459,0.68911278,103410.0,103400.0,0.36321492]
[1750463199705,0.68911243,103410.0,103400.0,0.36321492]
[1750463201225,0.68911243,103410.0,103400.0,0.36421492]
[1750463201434,0.34911078,103410.0,103400.0,0.36421492]
[1750463201650,0.34911078,103410.0,103400.0,0.75421657]
[1750463201651,0.00911078,103410.0,103400.0,0.75421657]
[1750463202186,5e-05,103410.0,103400.0,0.75421657]
[1750463203046,5e-05,103410.0,103400.0,0.41421492]
[1750463207185,5e-05,103410.0,103400.0,0.41321492]
[1750463207556,5e-05,103410.0,103400.0,0.41521492]
[1750463208129,5e-05,103410.0,103400.0,0.41821492]
[1750463209806,0.34005165,103410.0,103400.0,0.41821492]
[1750463210218,0.34005165,103410.0,103400.0,0.57737492]
[1750463213125,5e-05,103410.0,103400.0,0.57737492]
[1750463213332,0.34005165,103410.0,103400.0,0.57737492]
[1750463213744,0.34005165,103410.0,103400.0,0.41701492]
[1750463213952,0.34972114,103410.0,103400.0,0.48085599]
[1750463214389,0.36843689,103410.0,103400.0,0.45785599]
[1750463214606,0.37810676,103410.0,103400.0,0.45785599]
[1750463214820,0.38777687,103410.0,103400.0,0.40785599]
[1750463215029,0.38777687,103410.0,103400.0,0.45785599]
[1750463215239,0.38777687,103410.0,103400.0,0.40785599]
[1750463215454,1.26948407,103410.0,103400.0,0.25809458]
[1750463215664,0.92948461,103410.0,103400.0,0.06467108]
[1750463215872,0.91014506,103410.0,103400.0,0.055]
[1750463216289,1.25014671,103410.0,103400.0,0.005]
[1750463216722,1.25014671,103410.0,103400.0,0.003]
[1750463216936,1.24987267,103410.0,103400.0,0.003]
[1750463218062,6.05117067,103410.0,103400.0,0.003]
[1750463218479,6.05117067,103410.0,103390.0,0.3140007]
[1750463218677,0.35920623,103400.0,103390.0,0.3375007]
[1750463218910,0.36825455,103400.0,103390.0,0.3375007]
[1750463219139,0.37792563,103400.0,103390.0,0.3375007]
[1750463219559,0.38759652,103400.0,103390.0,0.32782934]
[1750463220098,0.39726769,103400.0,103390.0,0.32782934]
[1750463220296,0.39726769,103400.0,103390.0,0.32982934]
[1750463221057,0.39726769,103400.0,103390.0,0.33282934]
[1750463221212,0.36825445,103400.0,103390.0,0.3425008]
[1750463221427,0.36825445,103400.0,103390.0,0.3437008]
[1750463222427,0.37792544,103400.0,103390.0,0.3437008]
[1750463223071,0.37792525,103400.0,103390.0,0.3437008]
[1750463223433,0.36825426,103400.0,103390.0,0.3437008]
[1750463225877,0.36825404,103400.0,103390.0,0.3437008]
[1750463227407,0.37792503,103400.0,103390.0,0.3437008]
[1750463227886,0.37792503,103400.0,103390.0,0.3425008]
[1750463228884,0.36825404,103400.0,103390.0,0.3425008]
[1750463229090,0.36825348,103400.0,103390.0,0.3425008]
[1750463229271,0.38759527,103400.0,103390.0,0.3425008]
[1750463229525,0.37792428,103400.0,103390.0,0.3425008]
[1750463230235,0.71792428,103400.0,103390.0,0.3425008]
[1750463230449,0.90167792,103400.0,103390.0,0.0272]
[1750463230661,0.90167792,103400.0,103390.0,0.005]
[1750463230878,1.06079792,103400.0,103390.0,0.005]
[1750463231468,1.06079792,103400.0,103390.0,0.003]
[1750463231614,1.06079561,103400.0,103390.0,0.003]
[1750463231819,0.36901474,103390.0,103380.0,0.32545095]
[1750463232024,0.70887937,103390.0,103380.0,0.27673796]
[1750463232226,0.70887937,103390.0,103380.0,0.32673796]
[1750463233009,0.80414922,103390.0,103380.0,0.32873796]
[1750463233255,0.80414922,103390.0,103380.0,0.27873796]
[1750463233435,0.80414922,103390.0,103380.0,0.32873796]
[1750463233636,0.81382105,103390.0,103380.0,0.32873796]
[1750463233867,0.81382105,103390.0,103380.0,0.33173796]
[1750463234071,0.7185512,103390.0,103380.0,0.28173796]
[1750463234286,0.70887928,103390.0,103380.0,0.33173796]
[1750463235130,0.69920745,103390.0,103380.0,0.33173796]
[1750463235345,0.6895359,103390.0,103380.0,0.33173796]
[1750463235549,0.34,103390.0,103380.0,0.33173796]
[1750463235782,0.67986463,103390.0,103380.0,0.33173796]
[1750463237043,0.67987725,103390.0,103380.0,0.33173796]
[1750463238392,0.33987725,103390.0,103380.0,0.33173796]
[1750463239007,0.20747419,103400.0,103390.0,0.26815752]
[1750463239241,0.21652143,103400.0,103390.0,0.26815752]
[1750463240108,0.5563979,103400.0,103390.0,0.26815752]
[1750463240312,0.55640225,103400.0,103390.0,0.26815752]
[1750463242475,0.54673108,103400.0,103390.0,0.26815752]
[1750463242679,0.35859849,103400.0,103390.0,0.26815752]
[1750463242882,0.37794019,103400.0,103390.0,0.26815752]
[1750463245432,0.71794019,103400.0,103390.0,0.26815752]
[1750463246003,0.7088886,103400.0,103390.0,0.26815752]
[1750463246206,0.71795314,103400.0,103390.0,0.26815752]
[1750463247394,0.71795341,103400.0,103390.0,0.26815752]
[1750463247576,0.70828242,103400.0,103390.0,0.26815752]
[1750463247779,0.71795331,103400.0,103390.0,0.26815752]
[1750463248083,0.71795331,103400.0,103390.0,0.26939752]
[1750463248515,0.70828242,103400.0,103390.0,0.26939752]
[1750463250293,0.71795322,103400.0,103390.0,0.26939752]
[1750463251942,0.71795429,103400.0,103390.0,0.26939752]
[1750463253935,0.73729635,103400.0,103390.0,0.2693977]
[1750463254140,0.73729635,103400.0,103390.0,0.27782943]
[1750463254547,0.7605067,103400.0,103390.0,0.28750089]
[1750463254757,0.76050744,103400.0,103390.0,0.27782943]
[1750463254960,0.75083627,103400.0,103390.0,0.27782943]
[1750463255165,0.75083627,103400.0,103390.0,0.28750089]
[1750463255982,0.76050735,103400.0,103390.0,0.28750089]
[1750463256820,0.72762574,103400.0,103390.0,0.28750089]
[1750463257069,0.71795475,103400.0,103390.0,0.28750089]
[1750463257954,0.70828349,103400.0,103390.0,0.28750089]
[1750463258180,0.70828715,103400.0,103390.0,0.28865089]
[1750463260836,0.70828725,103400.0,103390.0,0.28865089]
[1750463261036,1.04818628,103400.0,103390.0,0.28865089]
[1750463261475,1.05785717,103400.0,103390.0,0.28865089]
[1750463261624,1.04878753,103400.0,103390.0,0.28865089]
[1750463261840,1.05785717,103400.0,103390.0,0.28865089]
[1750463262190,1.06752816,103400.0,103390.0,0.28865089]
[1750463262783,1.09074684,103400.0,103390.0,0.28865089]
[1750463263751,1.09074688,103400.0,103390.0,0.28865089]
[1750463264374,1.06752816,103400.0,103390.0,0.28865089]
[1750463264581,1.09074724,103400.0,103390.0,0.28865089]
[1750463265210,1.08107625,103400.0,103390.0,0.28865089]
[1750463265405,1.07140536,103400.0,103390.0,0.28865089]
[1750463265621,1.05785749,103400.0,103390.0,0.26815788]
[1750463265941,1.09074778,103400.0,103390.0,0.27782943]
[1750463266154,1.0810767,103400.0,103390.0,0.28750089]
[1750463266755,1.0810767,103400.0,103390.0,0.28865089]
[1750463267278,1.07140571,103400.0,103390.0,0.28865089]
[1750463267482,1.0810766,103400.0,103390.0,0.28865089]
[1750463269106,1.09074759,103400.0,103390.0,0.28865089]
[1750463269585,1.0810766,103400.0,103390.0,0.28865089]
[1750463270320,1.08107708,103400.0,103390.0,0.28865089]
[1750463270525,1.09074807,103400.0,103390.0,0.28865089]
[1750463271642,1.10041915,103400.0,103390.0,0.28865089]
[1750463272520,1.25949915,103400.0,103390.0,0.28865089]
[1750463273269,1.25042881,103400.0,103390.0,0.27897943]
[1750463273605,1.25042881,103400.0,103390.0,0.28865089]
[1750463274268,1.07200674,103400.0,103390.0,0.28865089]
[1750463274407,1.2304868,103400.0,103390.0,0.28865089]
[1750463274857,1.24015732,103400.0,103390.0,0.28865089]
[1750463275055,1.2072674,103400.0,103390.0,0.28865089]
[1750463275467,1.0481874,103400.0,103390.0,0.28865089]
[1750463275928,1.07140907,103400.0,103390.0,0.28865089]
[1750463276476,1.02884645,103400.0,103390.0,0.28865089]
[1750463277081,0.6889587,103400.0,103390.0,0.33865089]
[1750463277684,1.02884645,103400.0,103390.0,0.33865089]
[1750463278656,0.68884645,103400.0,103390.0,0.33865089]
[1750463278868,1.02884645,103400.0,103390.0,0.33865089]
[1750463282885,1.02884041,103400.0,103390.0,0.33865089]
[1750463284093,0.68884041,103400.0,103390.0,0.33865089]
[1750463285784,0.68883844,103400.0,103390.0,0.33865089]
[1750463286747,0.68883844,103400.0,103390.0,0.33767984]
[1750463288533,0.68883705,103400.0,103390.0,0.33767984]
[1750463291451,0.68883638,103400.0,103390.0,0.33767984]
[1750463294459,0.68883564,103400.0,103390.0,0.33767984]
[1750463294854,0.69850597,103400.0,103390.0,0.33767984]
[1750463295271,0.68883564,103400.0,103390.0,0.33767984]
[1750463295670,0.69850597,103400.0,103390.0,0.33767984]
[1750463295855,0.68883564,103400.0,103390.0,0.33767984]
[1750463296547,0.69850597,103400.0,103390.0,0.33767984]
[1750463296750,0.68883564,103400.0,103390.0,0.33767984]
[1750463297176,0.6797755,103400.0,103390.0,0.33767984]
[1750463297321,0.68883597,103400.0,103390.0,0.33767984]
[1750463298311,0.6797755,103400.0,103390.0,0.33767984]
[1750463298526,0.68883612,103400.0,103390.0,0.33767984]
[1750463303102,0.68883787,103400.0,103390.0,0.33767984]
[1750463305413,0.68884433,103400.0,103390.0,0.33767984]
[1750463305630,0.34895658,103400.0,103390.0,0.33767984]
[1750463306303,0.00906883,103400.0,103390.0,0.33767984]
[1750463306526,0.34895658,103400.0,103390.0,0.33767984]
[1750463308744,0.34895847,103400.0,103390.0,0.33767984]
[1750463311611,0.00907037,103400.0,103390.0,0.30606407]
[1750463311816,0.00907037,103400.0,103390.0,0.74123075]
[1750463312192,0.00907037,103400.0,103390.0,0.401343]
[1750463313752,0.00907037,103400.0,103390.0,0.74123075]
[1750463314315,0.33993775,103410.0,103400.0,0.31523599]
[1750463314521,0.34899708,103410.0,103400.0,0.47541599]
[1750463315668,0.35099708,103410.0,103400.0,0.47541599]
[1750463315872,0.01110933,103410.0,103400.0,0.47541599]
[1750463316074,0.01310933,103410.0,103400.0,0.47541599]
[1750463316384,0.01310933,103410.0,103400.0,0.81530374]
[1750463316603,0.01310933,103410.0,103400.0,0.57069492]
[1750463316803,0.01310933,103410.0,103400.0,0.91058267]
[1750463317454,0.0131047,103410.0,103400.0,0.91058267]
[1750463317952,0.00405,103410.0,103400.0,0.91058267]
[1750463318172,0.00205,103410.0,103400.0,0.91058267]
[1750463318397,0.00205,103410.0,103400.0,0.91358267]
[1750463319543,5e-05,103410.0,103400.0,0.91358267]
[1750463319763,5e-05,103410.0,103400.0,0.91558267]
[1750463321100,5e-05,103410.0,103400.0,0.57569492]
[1750463324035,0.33993775,103410.0,103400.0,0.52565492]
[1750463324257,0.33993775,103410.0,103400.0,0.57565492]
[1750463324486,0.33993775,103410.0,103400.0,0.47915599]
[1750463324711,0.34960715,103410.0,103400.0,0.48037599]
[1750463324929,0.35927674,103410.0,103400.0,0.47915599]
[1750463325148,0.3683231,103410.0,103400.0,0.47915599]
[1750463325377,0.37799287,103410.0,103400.0,0.47915599]
[1750463326075,0.36894651,103410.0,103400.0,0.47915599]
[1750463326293,0.37799401,103410.0,103400.0,0.47915599]
[1750463326741,0.44092712,103410.0,103400.0,0.29983599]
[1750463326966,0.93062685,103410.0,103400.0,0.22743617]
[1750463327183,0.92095745,103410.0,103400.0,0.22743617]
[1750463327403,0.92095745,103410.0,103400.0,0.21776556]
[1750463327625,0.91128786,103410.0,103400.0,0.21776556]
[1750463327848,0.91498786,103410.0,103400.0,0.21476556]
[1750463328071,0.90531809,103410.0,103400.0,0.21476556]
[1750463328290,0.90531867,103410.0,103400.0,0.21476556]
[1750463328530,0.90531867,103410.0,103400.0,0.20309467]
[1750463328739,0.21276547,103400.0,103390.0,0.23401491]
[1750463328957,0.22181409,103400.0,103390.0,0.21181491]
[1750463329171,0.38073409,103400.0,103390.0,0.21181491]
[1750463329442,0.19698111,103400.0,103390.0,0.27148665]
[1750463329658,0.52722239,103400.0,103390.0,0.32475811]
[1750463330078,0.53689319,103400.0,103390.0,0.32475811]
[1750463330514,0.53689319,103400.0,103390.0,0.32597811]
[1750463330515,0.52055178,103400.0,103390.0,0.32597811]
[1750463330923,0.51088126,103400.0,103390.0,0.32597811]
[1750463331131,0.52055178,103400.0,103390.0,0.32597811]
[1750463331339,0.18063905,103400.0,103390.0,0.32597811]
[1750463331550,0.52055169,103400.0,103390.0,0.32597811]
[1750463331757,0.52155027,103400.0,103390.0,0.32597811]
[1750463332124,0.36263027,103400.0,103390.0,0.32597811]
[1750463332296,0.52155027,103400.0,103390.0,0.32597811]
[1750463333590,0.5215498,103400.0,103390.0,0.32597811]
[1750463334773,0.86154989,103400.0,103390.0,0.32597811]
[1750463337271,0.8712205,103400.0,103390.0,0.32597811]
[1750463337480,0.51259043,103400.0,103390.0,0.32597811]
[1750463337695,0.86154951,103400.0,103390.0,0.32597811]
[1750463340469,0.86154913,103400.0,103390.0,0.32597811]
[1750463341735,0.8518787,103400.0,103390.0,0.32597811]
[1750463342191,0.86154913,103400.0,103390.0,0.32597811]
[1750463342598,0.8518787,103400.0,103390.0,0.32597811]
[1750463342804,0.8518387,103400.0,103390.0,0.32597811]
[1750463343016,0.35304606,103400.0,103390.0,0.32597811]
[1750463343426,0.344,103400.0,103390.0,0.32597811]
[1750463343630,0.35304584,103400.0,103390.0,0.32597811]
[1750463344216,0.35004584,103400.0,103390.0,0.32597811]
[1750463344392,0.35004584,103400.0,103390.0,0.32697811]
[1750463344827,0.34904584,103400.0,103390.0,0.32697811]
[1750463345232,0.34904584,103400.0,103390.0,0.32797811]
[1750463346193,0.68895848,103400.0,103390.0,0.32797811]
[1750463348348,0.70829962,103400.0,103390.0,0.31708647]
[1750463348556,0.71797051,103400.0,103390.0,0.31708647]
[1750463348763,0.71797338,103400.0,103390.0,0.31708647]
[1750463348967,1.05783284,103400.0,103390.0,0.31708647]
[1750463349170,1.06750383,103400.0,103390.0,0.31708647]
[1750463350405,1.05783284,103400.0,103390.0,0.31708647]
[1750463350832,0.37806074,103400.0,103390.0,0.31708647]
[1750463351034,0.7179356,103400.0,103390.0,0.31708647]
[1750463353898,0.96037946,103400.0,103390.0,0.20511432]
[1750463354107,0.95070875,103400.0,103390.0,0.21478624]
[1750463354319,1.00288653,103400.0,103390.0,0.22445798]
[1750463354524,0.97063505,103400.0,103390.0,0.22445798]
[1750463354776,0.97063505,103400.0,103390.0,0.22345798]
[1750463354983,0.97063505,103400.0,103390.0,0.22245798]
[1750463355189,0.92361534,103400.0,103390.0,0.24465798]
[1750463355573,0.94682055,103400.0,103390.0,0.24465798]
[1750463355995,0.73019175,103400.0,103390.0,0.27612944]
[1750463356222,0.73986236,103400.0,103390.0,0.27612944]
[1750463356567,0.74953344,103400.0,103390.0,0.27612944]
[1750463357235,0.94295703,103400.0,103390.0,0.24711441]
[1750463357421,0.93328642,103400.0,103390.0,0.26645835]
[1750463357628,0.93328642,103400.0,103390.0,0.27613018]
[1750463359598,1.09216642,103400.0,103390.0,0.28580192]
[1750463360004,0.94234805,103400.0,103390.0,0.28580192]
[1750463360233,1.10118805,103400.0,103390.0,0.28580192]
[1750463360835,1.10118805,103400.0,103390.0,0.28580145]
[1750463362058,1.09151716,103400.0,103390.0,0.27612981]
[1750463363106,1.0818475,103400.0,103390.0,0.25678624]
[1750463363321,1.17613891,103400.0,103390.0,0.25678624]
[1750463363750,1.17613891,103400.0,103390.0,0.24711432]
[1750463363976,1.07217642,103400.0,103380.0,0.30575346]
[1750463364190,0.6992188,103390.0,103380.0,0.31542594]
[1750463364398,0.72762514,103390.0,103380.0,0.31542594]
[1750463365481,0.7372966,103390.0,103380.0,0.31542594]
[1750463365909,0.93073916,103390.0,103380.0,0.31542594]
[1750463366761,0.9210677,103390.0,103380.0,0.30575346]
[1750463366970,0.9210677,103390.0,103380.0,0.30675346]
[1750463367177,0.9210677,103390.0,103380.0,0.30775346]
[1750463367322,0.9210677,103390.0,103380.0,0.31742594]
[1750463368741,0.92106705,103390.0,103380.0,0.31742594]
[1750463369347,0.92106705,103390.0,103380.0,0.26742594]
[1750463370369,0.92106705,103390.0,103380.0,0.31742594]
[1750463370813,0.96019646,103390.0,103380.0,0.04494701]
[1750463371020,0.96019646,103390.0,103380.0,0.24808097]
[1750463371248,0.95052463,103390.0,103380.0,0.25775402]
[1750463371446,0.95052463,103390.0,103380.0,0.25675402]
[1750463371653,0.95052463,103390.0,103380.0,0.25575402]
[1750463371857,0.95152463,103390.0,103380.0,0.25575402]
[1750463372063,0.95152463,103390.0,103380.0,0.26542688]
[1750463372925,1.29157723,103390.0,103380.0,0.26542688]
[1750463373330,1.29157723,103390.0,103380.0,0.25575402]
[1750463373734,1.29257723,103390.0,103380.0,0.25575402]
[1750463374572,1.2925762,103390.0,103380.0,0.25575402]
[1750463374790,1.4514162,103390.0,103380.0,0.25575402]
[1750463375638,1.45141738,103390.0,103380.0,0.25575402]
[1750463377366,1.60165749,103390.0,103380.0,0.04294701]
[1750463377574,6.78608411,103390.0,103380.0,4.701e-05]
[1750463377796,0.55282703,103370.0,103360.0,0.0403]
[1750463377998,0.55284782,103360.0,103350.0,0.25191927]
[1750463378203,1.24183837,103360.0,103350.0,0.26159484]
[1750463378401,1.40067837,103360.0,103350.0,0.26159484]
[1750463378604,1.40068028,103360.0,103350.0,0.26159484]
[1750463378893,0.86739933,103360.0,103350.0,0.28094552]
[1750463379099,0.86739933,103360.0,103350.0,0.29062072]
[1750463379299,0.86739933,103360.0,103350.0,0.28194552]
[1750463379507,0.86739933,103360.0,103350.0,0.27227023]
[1750463379714,0.86739933,103360.0,103350.0,0.28194543]
[1750463380378,0.88346872,103360.0,103350.0,0.28194543]
[1750463380587,0.88346835,103360.0,103350.0,0.28294543]
[1750463380797,0.02513444,103360.0,103350.0,0.28412543]
[1750463381004,0.35606939,103360.0,103350.0,0.32442543]
[1750463381417,0.34014491,103380.0,103350.0,0.2857236]
[1750463381647,0.35886695,103380.0,103370.0,0.30303368]
[1750463381849,0.37802744,103380.0,103370.0,0.30303368]
[1750463382072,0.73737222,103380.0,103370.0,0.30303368]
[1750463382692,0.49157126,103380.0,103370.0,0.30303368]
[1750463383433,0.5012419,103380.0,103370.0,0.30303368]
[1750463383640,0.5032419,103380.0,103370.0,0.30303368]
[1750463384060,0.51091476,103380.0,103370.0,0.30303368]
[1750463384263,0.85205967,103380.0,103370.0,0.30303368]
[1750463384664,0.94733027,103380.0,103370.0,0.25430667]
[1750463384866,1.13111955,103380.0,103370.0,0.25430723]
[1750463385068,1.13111955,103380.0,103370.0,0.27365416]
[1750463385471,0.92798549,103380.0,103370.0,0.32238117]
[1750463385705,0.92798549,103380.0,103370.0,0.4908945]
[1750463386093,0.92798352,103380.0,103370.0,0.4908945]
[1750463386336,0.93765657,103380.0,103370.0,0.4908945]
[1750463387479,1.13111758,103380.0,103370.0,0.48122117]
[1750463387707,1.13111758,103380.0,103370.0,0.48004117]
[1750463388741,1.13111758,103380.0,103370.0,0.45102063]
[1750463388913,1.12144491,103380.0,103370.0,0.46069442]
[1750463389134,1.12144338,103380.0,103370.0,0.46069442]
[1750463389467,0.21282694,103370.0,103360.0,0.41578763]
[1750463389672,0.66758901,103370.0,103360.0,0.24727318]
[1750463389943,0.66758901,103370.0,103360.0,0.46451473]
[1750463390312,0.65791568,103370.0,103360.0,0.46451473]
[1750463390853,0.65791568,103370.0,103360.0,0.46551473]
[1750463391074,0.65791568,103370.0,103360.0,0.46651473]
[1750463392040,0.64824217,103370.0,103360.0,0.46651473]
[1750463392675,0.55297232,103370.0,103360.0,0.47618918]
[1750463392887,0.55297232,103370.0,103360.0,0.40811337]
[1750463393087,0.55234504,103370.0,103360.0,0.41778819]
[1750463393403,0.55234504,103370.0,103360.0,0.4858641]
[1750463393626,0.54329862,103370.0,103360.0,0.4870441]
[1750463394119,0.55234669,103370.0,103360.0,0.4870441]
[1750463394476,0.36854066,103370.0,103360.0,0.4870441]
[1750463395508,0.56202039,103370.0,103360.0,0.4870441]
[1750463396311,0.90202039,103370.0,103360.0,0.47618974]
[1750463396490,0.90202039,103370.0,103360.0,0.41778819]
[1750463396691,0.89234669,103370.0,103360.0,0.4665152]
[1750463397888,0.88267271,103370.0,103360.0,0.05577492]
[1750463398100,0.88267271,103370.0,103360.0,0.3076752]
[1750463398253,0.88267271,103370.0,103360.0,0.31734993]
[1750463400130,0.88267271,103370.0,103360.0,0.32702457]
[1750463400636,0.88267901,103370.0,103360.0,0.32702457]
[1750463402010,0.88267901,103370.0,103360.0,0.33669911]
[1750463402203,0.88267901,103370.0,103360.0,0.33794911]
[1750463402605,0.8923528,103370.0,103360.0,0.33794864]
[1750463402856,0.70854602,103370.0,103360.0,0.33794771]
[1750463403060,0.71821981,103370.0,103360.0,0.33794771]
[1750463403438,0.69887251,103370.0,103360.0,0.33794771]
[1750463403805,0.70854602,103370.0,103360.0,0.33794771]
[1750463404027,0.71821981,103370.0,103360.0,0.33794771]
[1750463408860,0.7182288,103370.0,103360.0,0.33794771]
[1750463410519,0.72790269,103370.0,103360.0,0.33794771]
[1750463411713,0.72790701,103370.0,103360.0,0.33794771]
[1750463413814,0.71823303,103370.0,103360.0,0.33794771]
[1750463414854,0.70856088,103370.0,103360.0,0.33794771]
[1750463416552,0.70856079,103370.0,103360.0,0.33794771]
[1750463417440,0.69949156,103370.0,103360.0,0.33794771]
[1750463417666,0.70856172,103370.0,103360.0,0.33794771]
[1750463419264,0.71823533,103370.0,103360.0,0.33794771]
[1750463420438,0.7182371,103370.0,103360.0,0.33794771]
[1750463420648,0.718237,103370.0,103360.0,0.33794771]
[1750463421484,0.71823772,103370.0,103360.0,0.33794771]
[1750463423373,0.71823785,103370.0,103360.0,0.33794771]
[1750463429106,0.70856502,103370.0,103360.0,0.33794771]
[1750463429316,0.6988917,103370.0,103360.0,0.33794771]
[1750463429535,0.8576517,103370.0,103360.0,0.33794771]
[1750463430403,0.86732512,103370.0,103360.0,0.33794771]
[1750463430627,0.70856512,103370.0,103360.0,0.33794771]
[1750463431067,1.04855327,103370.0,103360.0,0.33794771]
[1750463431952,1.05822748,103370.0,103360.0,0.33794771]
[1750463434133,1.04855387,103370.0,103360.0,0.33794771]
[1750463434353,1.05822748,103370.0,103360.0,0.33794771]
[1750463434788,1.03947981,103370.0,103360.0,0.33794771]
[1750463435035,1.05822875,103370.0,103360.0,0.33794771]
[1750463436144,1.06790254,103370.0,103360.0,0.33794771]
[1750463436358,1.06790254,103370.0,103360.0,0.32827345]
[1750463436562,1.06790254,103370.0,103360.0,0.33794771]
[1750463436801,1.07757643,103370.0,103360.0,0.32827345]
[1750463437044,1.07757643,103370.0,103360.0,0.33669771]
[1750463437747,1.0775771,103370.0,103360.0,0.33669771]
[1750463440029,1.06790321,103370.0,103360.0,0.33669771]
[1750463441379,1.06790301,103370.0,103360.0,0.33669771]
[1750463443165,0.38776995,103370.0,103360.0,0.33669771]
[1750463443378,1.06790301,103370.0,103360.0,0.33669771]
[1750463443587,1.06790277,103370.0,103360.0,0.33669771]
[1750463446380,1.05882721,103370.0,103360.0,0.33669771]
[1750463446615,1.06790268,103370.0,103360.0,0.33669771]
[1750463447883,1.07757657,103370.0,103360.0,0.33669771]